fUSD/lending_fUSD_20250330
["ID","MTS","AMOUNT","RATE_DAILY","PERIOD"]
[356870150,1743347432517,-167.4,0.00048289,2]
[356870151,1743347432527,-1000.0,0.00048455,2]
[356870152,1743347432538,-220.72913058,0.00048899,2]
[356870153,1743347432548,-1204.836,0.000489,2]
[356870154,1743347432557,-550.7125,0.000489,2]
[356870155,1743347432566,-153.3094922,0.00048973,10]
[356870156,1743347432576,-161.78529314,0.00048973,10]
[356870157,1743347432585,-151.58079203,0.00048973,10]
[356870158,1743347432594,-500.0,0.00048973,2]
[356870159,1743347432604,-155.64059826,0.00048973,10]
[356870160,1743347432613,-500.0,0.00048973,2]
[356870161,1743347432622,-150.0,0.00048989,4]
[356870162,1743347432631,-91225.5941608,0.0004899,4]
[356870163,1743347432641,-500.0,0.00048999,120]
[356870164,1743347432651,-560.95,0.00048999,120]
[356870165,1743347432660,-95123.68974999,0.00049,2]
[356870166,1743347432708,-1170.18011916,0.00049,2]
[356870167,1743347432739,-463.5345,0.00048899,2]
[356870169,1743347433152,-212.26265237,0.00048899,2]
[356870170,1743347433163,-15513.04348569,0.00049,2]
[356870171,1743347433175,-9775.20657884,0.00049,2]
[356870172,1743347433190,-415.87469936,0.00049,2]
[356870173,1743347433202,-2028.99999988,0.00049,2]
[356870189,1743347438458,-675.79715237,0.00048902,2]
[356870190,1743347438468,-166.98295019,0.00049,2]
[356870191,1743347438480,-330.3001521,0.00049,2]
[356870192,1743347438491,-694.910216,0.00049,2]
[356870193,1743347438503,-3319.6333853,0.00049,2]
[356870194,1743347438513,-4760.95602591,0.00049,2]
[356870195,1743347438525,-23502.66989402,0.00049,2]
[356870196,1743347438537,-86860.20634923,0.00049,2]
[356870197,1743347438548,-922.34510238,0.00049,2]
[356870198,1743347438559,-2223.18905603,0.00049,2]
[356870199,1743347438570,-281.78311804,0.00049,2]
[356870200,1743347438581,-289.18728201,0.00049,2]
[356870201,1743347438592,-588.59927286,0.00049,2]
[356870202,1743347438603,-164593.64034795,0.00049,2]
[356870273,1743347440736,-4531.67397954,0.00049,2]
[356870274,1743347440749,-9096.64373114,0.00049,2]
[356870275,1743347440760,-8947.21879473,0.00049,2]
[356870276,1743347440772,-8943.78386462,0.00049,2]
[356870277,1743347440783,-9077.54866152,0.00049,2]
[356870278,1743347440795,-8943.84023489,0.00049,2]
[356870279,1743347440807,-35015.1045733,0.00049,2]
[356870280,1743347440816,-4344.07591242,0.00049005,4]
[356870281,1743347440826,-150.12,0.00049005,2]
[356870282,1743347440835,-6653.89547492,0.00049015,120]
[356870283,1743347440845,-4344.07591242,0.0004919,4]
[356870284,1743347440854,-150.99,0.0004919,2]
[356870285,1743347440864,-2235.18129094,0.000492,120]
[356870286,1743347440875,-4220.35711665,0.000492,120]
[356870287,1743347440884,-60817.0627739,0.00049305,4]
[356870288,1743347440894,-500.0,0.00049315,120]
[356870289,1743347440903,-500.0,0.00049315,120]
[356870290,1743347440913,-303.48381303,0.00049315,120]
[356870291,1743347440923,-500.0,0.00049315,120]
[356870292,1743347440934,-363.70882235,0.00049315,120]
[356870293,1743347440943,-500.0,0.00049315,120]
[356870294,1743347440953,-500.0,0.00049315,120]
[356870295,1743347440962,-574.17273756,0.00049315,60]
[356870296,1743347440972,-348.97009251,0.00049315,120]
[356870297,1743347440981,-500.0,0.00049315,120]
[356870298,1743347440990,-500.0,0.00049315,120]
[356870299,1743347440999,-536.96335966,0.00049315,120]
[356870300,1743347441009,-162.06311563,0.00049315,120]
[356870301,1743347441018,-500.0,0.00049315,120]
[356870302,1743347441028,-500.0,0.00049315,120]
[356870303,1743347441037,-500.0,0.00049315,120]
[356870305,1743347441046,-500.0,0.00049315,120]
[356870307,1743347441056,-540.75901094,0.00049315,120]
[356870308,1743347441065,-500.0,0.00049315,120]
[356870309,1743347441075,-500.0,0.00049315,120]
[356870310,1743347441084,-500.0,0.00049315,120]
[356870311,1743347441093,-607.46706804,0.00049315,120]
[356870312,1743347441102,-500.0,0.00049315,120]
[356870313,1743347441112,-500.0,0.00049315,120]
[356870314,1743347441121,-500.0,0.00049315,120]
[356870315,1743347441130,-564.72717752,0.00049315,120]
[356870316,1743347441139,-500.0,0.00049315,120]
[356870317,1743347441149,-568.70122125,0.00049315,120]
[356870318,1743347441158,-518.75317994,0.00049315,120]
[356870319,1743347441167,-500.0,0.00049315,120]
[356870320,1743347441176,-543.49414976,0.00049315,120]
[356870321,1743347441185,-500.0,0.00049315,120]
[356870322,1743347441194,-500.0,0.00049315,120]
[356870323,1743347441203,-500.0,0.00049315,120]
[356870324,1743347441212,-500.0,0.00049315,120]
[356870325,1743347441222,-538.72393199,0.00049315,120]
[356870326,1743347441232,-519.79037046,0.00049315,120]
[356870327,1743347441241,-523.30956767,0.00049315,120]
[356870328,1743347441251,-500.0,0.00049315,120]
[356870329,1743347441259,-529.54356974,0.00049315,120]
[356870330,1743347441270,-500.0,0.00049315,120]
[356870331,1743347441280,-500.0,0.00049315,120]
[356870332,1743347441288,-500.0,0.00049315,120]
[356870333,1743347441298,-500.0,0.00049315,120]
[356870334,1743347441311,-500.0,0.00049315,120]
[356870335,1743347441321,-500.0,0.00049315,120]
[356870336,1743347441331,-500.0,0.00049315,120]
[356870337,1743347441340,-500.0,0.00049315,120]
[356870338,1743347441350,-259.81297379,0.00049315,120]
[356870339,1743347441359,-500.0,0.00049315,120]
[356870340,1743347441368,-500.0,0.00049315,120]
[356870341,1743347441377,-500.0,0.00049315,120]
[356870342,1743347441387,-625.62717281,0.00049315,120]
[356870343,1743347441397,-500.0,0.00049315,120]
[356870344,1743347441406,-500.0,0.00049315,120]
[356870345,1743347441415,-562.54877968,0.00049315,120]
[356870346,1743347441425,-527.8631912,0.00049315,120]
[356870347,1743347441435,-500.0,0.00049315,120]
[356870348,1743347441444,-500.0,0.00049315,120]
[356870349,1743347441453,-500.0,0.00049315,120]
[356870350,1743347441462,-551.26652943,0.00049315,120]
[356870351,1743347441472,-500.0,0.00049315,120]
[356870352,1743347441481,-500.0,0.00049315,120]
[356870353,1743347441491,-519.42783136,0.00049315,120]
[356870354,1743347441500,-500.0,0.00049315,120]
[356870355,1743347441510,-500.0,0.00049315,120]
[356870356,1743347441519,-500.0,0.00049315,120]
[356870357,1743347441529,-500.0,0.00049315,120]
[356870358,1743347441538,-503.84259242,0.00049315,120]
[356870359,1743347441547,-500.0,0.00049315,120]
[356870360,1743347441557,-507.05957467,0.00049315,120]
[356870361,1743347441565,-500.0,0.00049315,120]
[356870362,1743347441575,-500.0,0.00049315,120]
[356870363,1743347441585,-500.0,0.00049315,120]
[356870364,1743347441595,-2494.78,0.00049315,7]
[356870365,1743347441604,-500.0,0.00049315,120]
[356870366,1743347441614,-500.0,0.00049315,120]
[356870367,1743347441623,-500.0,0.00049315,120]
[356870368,1743347441633,-500.0,0.00049315,120]
[356870369,1743347441642,-500.0,0.00049315,120]
[356870370,1743347441652,-500.0,0.00049315,120]
[356870371,1743347441661,-500.0,0.00049315,120]
[356870372,1743347441671,-500.0,0.00049315,120]
[356870373,1743347441681,-500.0,0.00049315,120]
[356870374,1743347441690,-500.0,0.00049315,120]
[356870375,1743347441700,-500.0,0.00049315,120]
[356870376,1743347441709,-500.0,0.00049315,120]
[356870377,1743347441718,-500.0,0.00049315,120]
[356870378,1743347441728,-500.0,0.00049315,120]
[356870379,1743347441738,-500.0,0.00049315,120]
[356870380,1743347441747,-500.0,0.00049315,120]
[356870381,1743347441757,-559.8336885,0.00049315,120]
[356870382,1743347441766,-500.0,0.00049315,120]
[356870383,1743347441776,-500.0,0.00049315,120]
[356870384,1743347441786,-500.0,0.00049315,120]
[356870385,1743347441795,-500.0,0.00049315,120]
[356870386,1743347441805,-500.0,0.00049315,120]
[356870387,1743347441814,-500.0,0.00049315,120]
[356870388,1743347441823,-500.0,0.00049315,120]
[356870389,1743347441833,-500.0,0.00049315,120]
[356870390,1743347441844,-551.91081702,0.00049315,120]
[356870391,1743347441854,-251.65201847,0.00049315,120]
[356870392,1743347441863,-500.0,0.00049315,120]
[356870393,1743347441873,-500.0,0.00049315,120]
[356870394,1743347441883,-500.0,0.00049315,120]
[356870395,1743347441892,-500.0,0.00049315,120]
[356870396,1743347441902,-500.0,0.00049315,120]
[356870397,1743347441914,-312.05,0.00049315,120]
[356870398,1743347441923,-500.0,0.00049315,120]
[356870399,1743347441933,-500.0,0.00049315,120]
[356870400,1743347441942,-979.58,0.00049315,120]
[356870401,1743347441951,-500.0,0.00049315,120]
[356870402,1743347441961,-500.0,0.00049315,120]
[356870403,1743347441970,-500.0,0.00049315,120]
[356870404,1743347441980,-500.0,0.00049315,120]
[356870405,1743347441990,-500.0,0.00049315,120]
[356870406,1743347441999,-500.0,0.00049315,120]
[356870407,1743347442009,-500.0,0.00049315,120]
[356870408,1743347442019,-500.0,0.00049315,120]
[356870409,1743347442028,-500.0,0.00049315,120]
[356870410,1743347442037,-500.0,0.00049315,120]
[356870411,1743347442047,-284.56346139,0.00049315,120]
[356870412,1743347442059,-265.48649604,0.00049315,120]
[356870413,1743347442068,-500.0,0.00049315,120]
[356870414,1743347442078,-500.0,0.00049315,120]
[356870415,1743347442087,-5547.49348692,0.00049315,30]
[356870416,1743347442124,-37059.16651308,0.00049315,30]
[356870417,1743347442133,-827.31,0.00049315,2]
[356870418,1743347442143,-999.99,0.00049315,10]
[356870419,1743347442152,-500.0,0.00049315,120]
[356870420,1743347442161,-500.0,0.00049315,120]
[356870421,1743347442170,-500.0,0.00049315,120]
[356870422,1743347442180,-500.0,0.00049315,120]
[356870423,1743347442189,-500.0,0.00049315,120]
[356870424,1743347442199,-500.0,0.00049315,120]
[356870425,1743347442209,-500.0,0.00049315,120]
[356870426,1743347442219,-212.72447461,0.00049315,120]
[356870427,1743347442228,-500.0,0.00049315,120]
[356870428,1743347442238,-500.0,0.00049315,120]
[356870429,1743347442247,-500.0,0.00049315,120]
[356870430,1743347442257,-500.0,0.00049315,120]
[356870431,1743347442266,-500.0,0.00049315,120]
[356870432,1743347442276,-500.0,0.00049315,120]
[356870433,1743347442285,-500.0,0.00049315,120]
[356870434,1743347442294,-500.0,0.00049315,120]
[356870435,1743347442305,-500.0,0.00049315,120]
[356870436,1743347442316,-500.0,0.00049315,120]
[356870437,1743347442325,-1982.94,0.00049315,120]
[356870438,1743347442335,-5334.51,0.00049315,2]
[356870439,1743347442344,-575.93,0.00049315,120]
[356870440,1743347442354,-500.0,0.00049315,120]
[356870441,1743347442363,-500.0,0.00049315,120]
[356870442,1743347442372,-500.0,0.00049315,120]
[356870443,1743347442384,-500.0,0.00049315,120]
[356870444,1743347442394,-500.0,0.00049315,120]
[356870445,1743347442403,-500.0,0.00049315,120]
[356870446,1743347442412,-500.0,0.00049315,120]
[356870447,1743347442421,-219.74882114,0.00049315,2]
[356870448,1743347442431,-1921.44,0.00049315,120]
[356870449,1743347442440,-500.0,0.00049315,120]
[356870450,1743347442449,-500.0,0.00049315,120]
[356870451,1743347442459,-500.0,0.00049315,120]
[356870452,1743347442468,-500.0,0.00049315,2]
[356870453,1743347442477,-500.0,0.00049315,2]
[356870454,1743347442486,-376.18,0.00049315,2]
[356870455,1743347442495,-500.0,0.00049315,120]
[356870456,1743347442504,-6965.39,0.00049315,2]
[356870457,1743347442513,-500.0,0.00049315,120]
[356870458,1743347442522,-500.0,0.00049315,100]
[356870459,1743347442531,-500.0,0.00049315,120]
[356870460,1743347442541,-500.0,0.00049315,120]
[356870461,1743347442550,-560.33398368,0.00049315,120]
[356870462,1743347442560,-500.0,0.00049315,2]
[356870463,1743347442569,-500.0,0.00049315,120]
[356870464,1743347442578,-500.0,0.00049315,2]
[356870465,1743347442587,-500.0,0.00049315,120]
[356870466,1743347442596,-500.0,0.00049315,120]
[356870467,1743347442606,-500.0,0.00049315,120]
[356870468,1743347442615,-500.0,0.00049315,120]
[356870469,1743347442624,-500.0,0.00049315,120]
[356870470,1743347442633,-500.0,0.00049315,120]
[356870471,1743347442642,-500.0,0.00049315,120]
[356870472,1743347442651,-43440.7591242,0.00049478,4]
[356870473,1743347442661,-88888.0,0.00049488,120]
[356870474,1743347442670,-716.00191754,0.00049488,21]
[356870475,1743347442679,-1607.9105,0.00049489,2]
[356870476,1743347442689,-329.632,0.00049489,2]
[356870477,1743347442699,-2670.3527,0.00049489,2]
[356870478,1743347442708,-437.8071,0.00049489,2]
[356870479,1743347442717,-8688.15182484,0.00049568,4]
[356870480,1743347442727,-21720.3795621,0.00049569,4]
[356870481,1743347442738,-540.88412893,0.00049573,10]
[356870482,1743347442748,-168.16640901,0.00049573,7]
[356870483,1743347442758,-505.32562695,0.00049573,10]
[356870484,1743347442767,-200.93823212,0.00049573,10]
[356870485,1743347442776,-500.0,0.00049578,7]
[356870486,1743347442787,-500.0,0.00049578,120]
[356870487,1743347442796,-500.0,0.00049578,120]
[356870488,1743347442806,-842.49,0.00049578,120]
[356870489,1743347442815,-500.0,0.00049578,120]
[356870490,1743347442824,-385.96660651,0.00049579,7]
[356870491,1743347442833,-500.0,0.00049587,120]
[356870492,1743347442843,-500.0,0.00049587,120]
[356870493,1743347442852,-500.0,0.00049587,120]
[356870494,1743347442861,-621.99747352,0.00049587,120]
[356870495,1743347442871,-500.0,0.00049587,120]
[356870496,1743347442881,-500.0,0.00049587,120]
[356870497,1743347442890,-500.0,0.00049587,120]
[356870498,1743347442900,-500.0,0.00049587,120]
[356870499,1743347442909,-500.0,0.00049587,120]
[356870500,1743347442918,-500.0,0.00049587,120]
[356870501,1743347442928,-500.0,0.00049587,120]
[356870502,1743347442937,-375.2158687,0.00049587,120]
[356870503,1743347442947,-500.0,0.00049587,120]
[356870504,1743347442956,-911.65,0.00049587,120]
[356870505,1743347442966,-500.0,0.00049587,120]
[356870506,1743347442975,-155.00794819,0.00049588,30]
[356870507,1743347442985,-500.0,0.00049588,120]
[356870508,1743347442995,-500.0,0.00049588,120]
[356870509,1743347443004,-500.0,0.00049588,120]
[356870510,1743347443014,-500.0,0.00049588,120]
[356870511,1743347443023,-581.49025108,0.00049588,120]
[356870512,1743347443033,-1239.9,0.00049588,120]
[356870513,1743347443042,-560.1618891,0.00049588,120]
[356870514,1743347443053,-500.0,0.00049588,120]
[356870515,1743347443062,-552.84734818,0.00049588,120]
[356870516,1743347443072,-500.0,0.00049588,120]
[356870517,1743347443082,-500.0,0.00049588,120]
[356870518,1743347443092,-500.0,0.00049588,120]
[356870519,1743347443101,-500.0,0.00049588,120]
[356870520,1743347443243,-500.0,0.00049588,120]
[356870521,1743347443253,-603.68365993,0.00049588,120]
[356870522,1743347443263,-500.0,0.00049588,120]
[356870523,1743347443272,-500.0,0.00049588,120]
[356870524,1743347443281,-432.13266386,0.00049588,120]
[356870526,1743347443291,-1485.08,0.00049588,120]
[356870527,1743347443300,-500.0,0.00049588,120]
[356870528,1743347443313,-500.0,0.00049588,120]
[356870529,1743347443322,-500.0,0.00049588,120]
[356870530,1743347443332,-629.93,0.00049588,120]
[356870531,1743347443342,-1658.77,0.00049588,120]
[356870532,1743347443354,-500.0,0.00049588,120]
[356870535,1743347443363,-537.24174974,0.00049588,120]
[356870537,1743347443373,-500.0,0.00049588,120]
[356870538,1743347443384,-500.0,0.00049588,120]
[356870539,1743347443394,-500.0,0.00049588,120]
[356870540,1743347443403,-525.75503299,0.00049588,120]
[356870541,1743347443412,-500.0,0.00049588,120]
[356870542,1743347443422,-500.0,0.00049588,120]
[356870543,1743347443431,-500.0,0.00049588,120]
[356870544,1743347443441,-515.79051467,0.00049588,120]
[356870545,1743347443450,-500.0,0.00049588,120]
[356870546,1743347443460,-500.0,0.00049588,120]
[356870547,1743347443470,-500.0,0.00049588,120]
[356870548,1743347443479,-500.0,0.00049588,120]
[356870549,1743347443490,-574.2477852,0.00049588,120]
[356870550,1743347443499,-500.0,0.00049588,120]
[356870551,1743347443508,-500.0,0.00049588,120]
[356870552,1743347443517,-500.0,0.00049588,120]
[356870553,1743347443527,-512.81113916,0.00049588,120]
[356870554,1743347443536,-1628.29,0.00049588,2]
[356870555,1743347443546,-500.0,0.00049588,120]
[356870556,1743347443556,-500.0,0.00049588,120]
[356870557,1743347443565,-255.71580558,0.00049588,120]
[356870558,1743347443575,-500.0,0.00049588,120]
[356870559,1743347443584,-500.0,0.00049588,120]
[356870560,1743347443593,-500.0,0.00049588,120]
[356870561,1743347443603,-500.0,0.00049588,120]
[356870562,1743347443612,-500.0,0.00049588,120]
[356870563,1743347443622,-559.89472216,0.00049588,120]
[356870564,1743347443632,-638.80628656,0.00049588,120]
[356870565,1743347443641,-548.99260424,0.00049588,120]
[356870566,1743347443650,-500.0,0.00049588,120]
[356870567,1743347443659,-500.0,0.00049588,120]
[356870568,1743347443668,-500.0,0.00049588,120]
[356870569,1743347443678,-500.0,0.00049588,120]
[356870570,1743347443687,-500.0,0.00049588,120]
[356870571,1743347443696,-508.79582864,0.00049588,120]
[356870572,1743347443706,-500.0,0.00049588,120]
[356870573,1743347443715,-497.29139754,0.00049588,120]
[356870574,1743347443724,-500.0,0.00049588,120]
[356870575,1743347443733,-521.35598489,0.00049588,120]
[356870576,1743347443743,-608.83383579,0.00049588,120]
[356870577,1743347443752,-500.0,0.00049588,120]
[356870578,1743347443762,-500.0,0.00049588,120]
[356870579,1743347443771,-656.98,0.00049588,30]
[356870580,1743347443780,-500.0,0.00049588,120]
[356870581,1743347443789,-500.0,0.00049588,120]
[356870582,1743347443798,-500.0,0.00049588,120]
[356870583,1743347443808,-513.62947501,0.00049588,120]
[356870584,1743347443817,-500.0,0.00049588,120]
[356870585,1743347443826,-500.0,0.00049588,120]
[356870586,1743347443835,-697.94,0.00049588,120]
[356870587,1743347443845,-520.37647056,0.00049588,120]
[356870588,1743347443854,-500.0,0.00049588,120]
[356870589,1743347443863,-500.0,0.00049588,120]
[356870590,1743347443872,-178.74604609,0.00049588,120]
[356870591,1743347443881,-500.0,0.00049588,120]
[356870592,1743347443891,-500.0,0.00049588,120]
[356870593,1743347443900,-500.0,0.00049588,120]
[356870594,1743347443910,-500.0,0.00049588,120]
[356870595,1743347443919,-559.45348809,0.00049588,120]
[356870596,1743347443928,-460.7291067,0.00049588,120]
[356870597,1743347443938,-497.04386652,0.00049588,120]
[356870598,1743347443947,-500.0,0.00049588,120]
[356870599,1743347443956,-500.0,0.00049588,120]
[356870600,1743347443965,-643.02196453,0.00049588,120]
[356870601,1743347443974,-500.0,0.00049588,120]
[356870602,1743347443984,-200.0,0.00049588,7]
[356870603,1743347443993,-500.0,0.00049588,120]
[356870604,1743347444003,-500.0,0.00049588,120]
[356870605,1743347444013,-500.0,0.00049588,120]
[356870606,1743347444023,-500.0,0.00049588,120]
[356870607,1743347444032,-500.0,0.00049588,120]
[356870609,1743347444042,-619.23,0.00049588,120]
[356870611,1743347444051,-500.0,0.00049588,120]
[356870613,1743347444065,-500.0,0.00049588,120]
[356870616,1743347444074,-500.0,0.00049588,120]
[356870618,1743347444084,-500.0,0.00049588,120]
[356870619,1743347444094,-500.0,0.00049588,120]
[356870620,1743347444103,-500.0,0.00049588,120]
[356870621,1743347444113,-500.0,0.00049588,120]
[356870622,1743347444123,-500.0,0.00049588,120]
[356870623,1743347444132,-500.0,0.00049588,120]
[356870624,1743347444142,-612.43,0.00049588,120]
[356870625,1743347444151,-500.0,0.00049588,120]
[356870626,1743347444161,-500.0,0.00049588,120]
[356870627,1743347444170,-500.0,0.00049588,120]
[356870628,1743347444179,-500.0,0.00049588,120]
[356870629,1743347444188,-500.0,0.00049588,120]
[356870630,1743347444198,-608.13,0.00049588,120]
[356870631,1743347444207,-500.0,0.00049588,120]
[356870632,1743347444216,-500.0,0.00049588,120]
[356870633,1743347444225,-500.0,0.00049588,120]
[356870634,1743347444235,-576.87305405,0.00049588,120]
[356870635,1743347444244,-500.0,0.00049588,120]
[356870636,1743347444253,-500.0,0.00049588,120]
[356870637,1743347444262,-500.0,0.00049588,120]
[356870638,1743347444272,-500.0,0.00049588,120]
[356870639,1743347444283,-500.0,0.00049588,120]
[356870640,1743347444294,-500.0,0.00049588,120]
[356870641,1743347444307,-500.0,0.00049588,120]
[356870642,1743347444317,-500.0,0.00049588,120]
[356870643,1743347444326,-500.0,0.00049588,120]
[356870644,1743347444335,-500.0,0.00049588,120]
[356870645,1743347444345,-500.0,0.00049588,120]
[356870646,1743347444355,-500.0,0.00049588,120]
[356870647,1743347444364,-500.0,0.00049588,120]
[356870648,1743347444373,-500.0,0.00049588,120]
[356870649,1743347444384,-230.21,0.00049588,120]
[356870650,1743347444394,-276.93005584,0.00049588,120]
[356870651,1743347444403,-500.0,0.00049588,120]
[356870652,1743347444413,-500.0,0.00049588,120]
[356870653,1743347444423,-500.0,0.00049588,120]
[356870654,1743347444432,-392.55942788,0.00049588,120]
[356870655,1743347444442,-500.0,0.00049588,120]
[356870656,1743347444451,-500.0,0.00049588,120]
[356870657,1743347444461,-372.38,0.00049588,120]
[356870658,1743347444470,-500.0,0.00049588,120]
[356870659,1743347444479,-500.0,0.00049588,120]
[356870660,1743347444489,-500.0,0.00049588,120]
[356870661,1743347444498,-561.67280498,0.00049588,120]
[356870662,1743347444508,-363.61731583,0.00049588,30]
[356870663,1743347444517,-500.0,0.00049588,120]
[356870664,1743347444527,-500.0,0.00049588,120]
[356870665,1743347444536,-500.0,0.00049588,120]
[356870666,1743347444545,-500.0,0.00049588,120]
[356870667,1743347444555,-500.0,0.00049588,120]
[356870668,1743347444564,-500.0,0.00049588,120]
[356870669,1743347444573,-201.84085758,0.00049588,120]
[356870670,1743347444582,-500.0,0.00049588,120]
[356870671,1743347444591,-500.0,0.00049588,120]
[356870672,1743347444600,-500.0,0.00049588,120]
[356870673,1743347444609,-500.0,0.00049588,120]
[356870674,1743347444619,-500.0,0.00049588,120]
[356870675,1743347444628,-500.0,0.00049588,120]
[356870676,1743347444637,-500.0,0.00049588,120]
[356870677,1743347444646,-428.15414312,0.00049588,120]
[356870678,1743347444655,-205.08361899,0.00049588,120]
[356870679,1743347444665,-500.0,0.00049588,120]
[356870680,1743347444674,-500.0,0.00049588,120]
[356870681,1743347444683,-500.0,0.00049588,120]
[356870682,1743347444692,-500.0,0.00049588,120]
[356870683,1743347444702,-484.11778359,0.00049588,120]
[356870684,1743347444711,-500.0,0.00049588,120]
[356870685,1743347444720,-1294.52,0.00049588,120]
[356870686,1743347444729,-500.0,0.00049588,120]
[356870687,1743347444738,-664.23,0.00049588,120]
[356870688,1743347444747,-607.89448338,0.00049588,120]
[356870689,1743347444756,-500.0,0.00049588,120]
[356870690,1743347444765,-561.70471293,0.00049588,30]
[356870691,1743347444775,-575.34004379,0.00049588,120]
[356870692,1743347444784,-521.9159849,0.00049588,120]
[356870693,1743347444795,-500.0,0.00049588,120]
[356870694,1743347444805,-500.0,0.00049588,120]
[356870695,1743347444814,-500.0,0.00049588,120]
[356870696,1743347444823,-293.24415093,0.00049588,12]
[356870697,1743347444833,-500.0,0.00049588,60]
[356870698,1743347444842,-500.0,0.00049588,120]
[356870699,1743347444851,-789.53651103,0.00049588,30]
[356870700,1743347444979,-312.50348897,0.00049588,30]
[356870701,1743347444988,-500.0,0.00049588,120]
[356870702,1743347444998,-500.0,0.00049588,120]
[356870703,1743347445007,-500.0,0.00049588,120]
[356870704,1743347445017,-500.0,0.00049588,120]
[356870705,1743347445026,-500.0,0.00049588,120]
[356870706,1743347445035,-541.27202559,0.00049588,120]
[356870707,1743347445044,-500.0,0.00049588,120]
[356870708,1743347445055,-500.0,0.00049588,120]
[356870709,1743347445064,-500.0,0.00049588,120]
[356870710,1743347445074,-500.0,0.00049588,120]
[356870711,1743347445083,-500.0,0.00049588,120]
[356870712,1743347445093,-500.0,0.00049588,120]
[356870713,1743347445102,-791.77,0.00049588,2]
[356870714,1743347445111,-500.0,0.00049588,120]
[356870715,1743347445121,-500.0,0.00049588,120]
[356870716,1743347445131,-500.0,0.00049588,120]
[356870717,1743347445142,-1147.33,0.00049588,120]
[356870718,1743347445153,-609.36818364,0.00049588,120]
[356870719,1743347445162,-500.0,0.00049588,120]
[356870720,1743347445171,-500.0,0.00049588,120]
[356870721,1743347445181,-500.0,0.00049588,120]
[356870722,1743347445191,-500.0,0.00049588,120]
[356870723,1743347445200,-549.0593817,0.00049588,120]
[356870724,1743347445210,-500.0,0.00049588,120]
[356870725,1743347445219,-500.0,0.00049588,120]
[356870726,1743347445228,-500.0,0.00049588,120]
[356870727,1743347445237,-500.0,0.00049588,120]
[356870728,1743347445247,-500.0,0.00049588,120]
[356870729,1743347445256,-500.0,0.00049588,120]
[356870730,1743347445266,-500.0,0.00049588,120]
[356870731,1743347445275,-500.0,0.00049588,120]
[356870732,1743347445284,-500.0,0.00049588,120]
[356870733,1743347445293,-500.0,0.00049588,120]
[356870734,1743347445305,-344.33247645,0.00049588,120]
[356870735,1743347445315,-500.0,0.00049588,120]
[356870736,1743347445323,-500.0,0.00049588,120]
[356870737,1743347445332,-500.0,0.00049588,120]
[356870738,1743347445342,-500.0,0.00049588,120]
[356870739,1743347445353,-500.0,0.00049588,120]
[356870740,1743347445363,-500.0,0.00049588,120]
[356870741,1743347445373,-500.0,0.00049588,120]
[356870742,1743347445385,-500.0,0.00049588,120]
[356870743,1743347445396,-500.0,0.00049588,120]
[356870744,1743347445405,-500.0,0.00049588,120]
[356870745,1743347445414,-500.0,0.00049588,120]
[356870746,1743347445423,-500.0,0.00049588,120]
[356870747,1743347445432,-500.0,0.00049588,120]